bitfinex-derivatives/quotes_BTCF0:USTF0_20250710
["timestamp","ask_amount","ask_price","bid_price","bid_amount"]
[1752110178523,0.008,111120.0,111110.0,3.34718509]
[1752110178926,0.008,111120.0,111110.0,3.36718509]
[1752110179129,0.006,111120.0,111110.0,3.36718509]
[1752110179330,0.006,111120.0,111110.0,3.10230128]
[1752110179831,1e-07,111120.0,111110.0,3.36718509]
[1752110180126,0.002,111130.0,111120.0,0.1799228]
[1752110180326,0.002,111130.0,111120.0,3.02026834]
[1752110181227,0.005,111130.0,111120.0,3.02026834]
[1752110181433,0.007,111130.0,111120.0,3.02026834]
[1752110181632,0.04908616,111130.0,111120.0,3.02026834]
[1752110182129,0.08818616,111130.0,111120.0,1.53298691]
[1752110182326,0.08818616,111130.0,111120.0,1.76084661]
[1752110182327,0.41446997,111130.0,111120.0,1.76084661]
[1752110182722,0.41446997,111130.0,111120.0,2.02573042]
[1752110182928,0.14858616,111130.0,111120.0,1.41049042]
[1752110183130,0.59337657,111130.0,111120.0,1.17560661]
[1752110183334,0.77335257,111130.0,111120.0,0.88560661]
[1752110183534,0.77335257,111130.0,111120.0,0.8807228]
[1752110183736,0.77335257,111130.0,111120.0,1.14560661]
[1752110184237,0.77335257,111130.0,111120.0,0.78480661]
[1752110184431,0.77035257,111130.0,111120.0,0.80480661]
[1752110184835,0.58597041,111130.0,111120.0,0.5399228]
[1752110186233,0.40606381,111130.0,111120.0,0.5399228]
[1752110186436,0.32556216,111130.0,111120.0,0.80459164]
[1752110188139,0.50546876,111130.0,111120.0,0.79459164]
[1752110188444,0.32556216,111130.0,111120.0,0.79459164]
[1752110188646,0.50546876,111130.0,111120.0,1.15539164]
[1752110188944,0.50546876,111130.0,111120.0,1.13539164]
[1752110189641,0.32549276,111130.0,111120.0,1.13539164]
[1752110189843,0.32549276,111130.0,111120.0,0.77459164]
[1752110190043,0.14558616,111130.0,111120.0,0.77459164]
[1752110190240,0.40599441,111130.0,111120.0,0.78412164]
[1752110190444,0.40599441,111130.0,111120.0,0.77459164]
[1752110190832,0.32549276,111130.0,111120.0,0.78412164]
[1752110191341,0.32549276,111130.0,111120.0,0.77459164]
[1752110191537,0.32549276,111130.0,111120.0,0.78412164]
[1752110191748,0.32549276,111130.0,111120.0,0.77459164]
[1752110191937,0.32549276,111130.0,111120.0,0.78412164]
[1752110192337,0.32549276,111130.0,111120.0,0.79412164]
[1752110192535,0.32549276,111130.0,111120.0,0.78459164]
[1752110192730,0.32549276,111130.0,111120.0,0.79412164]
[1752110193134,0.32549276,111130.0,111120.0,0.78459164]
[1752110193339,0.32549276,111130.0,111120.0,0.79412164]
[1752110193340,0.43296531,111130.0,111120.0,0.79412164]
[1752110193553,0.43296531,111130.0,111120.0,0.78459164]
[1752110193844,0.43296531,111130.0,111120.0,0.80412164]
[1752110194646,0.43296531,111130.0,111120.0,1.16492164]
[1752110195245,0.32549276,111130.0,111120.0,1.16492164]
[1752110195445,0.43305835,111130.0,111120.0,1.16492164]
[1752110195845,0.32549276,111130.0,111120.0,1.16492164]
[1752110197245,0.32549276,111130.0,111120.0,0.7108]
[1752110197444,0.19842174,111120.0,111110.0,0.2698894]
[1752110197641,2.01358668,111120.0,111110.0,0.5349065]
[1752110197842,2.01358668,111120.0,111110.0,0.2749065]
[1752110198042,1.69358668,111120.0,111110.0,0.2749065]
[1752110198345,0.179939,111110.0,111100.0,0.00013507]
[1752110198538,1.05869974,111110.0,111100.0,0.30008337]
[1752110198737,1.05869974,111110.0,111100.0,0.18008337]
[1752110199341,1.01661358,111110.0,111100.0,0.18008337]
[1752110199538,1.04935241,111110.0,111100.0,0.18008337]
[1752110200343,0.43423241,111110.0,111100.0,0.18008337]
[1752110200548,1.04935241,111110.0,111100.0,0.18008337]
[1752110200746,1.41015241,111110.0,111100.0,0.18008337]
[1752110200943,1.4193569,111110.0,111100.0,0.18008337]
[1752110201550,1.68402574,111110.0,111100.0,0.18008337]
[1752110202253,1.86403374,111110.0,111100.0,0.18008337]
[1752110202552,1.89091548,111110.0,111100.0,0.18008337]
[1752110202953,1.13094916,111110.0,111100.0,0.18008337]
[1752110203358,1.2385821,111110.0,111100.0,0.18008337]
[1752110203648,1.22937761,111110.0,111100.0,0.18008337]
[1752110204149,1.23859682,111110.0,111100.0,0.18008337]
[1752110204852,1.21167884,111110.0,111100.0,0.18008337]
[1752110205354,1.13096388,111110.0,111100.0,0.18008337]
[1752110205554,1.21166447,111110.0,111100.0,0.18008337]
[1752110205754,1.03165647,111110.0,111100.0,0.18008337]
[1752110205953,0.95095588,111110.0,111100.0,0.18008337]
[1752110207057,0.94173667,111110.0,111100.0,0.18008337]
[1752110207249,0.32661667,111110.0,111100.0,0.54088337]
[1752110207451,0.94181667,111110.0,111100.0,0.18008337]
[1752110207645,1.02247081,111110.0,111100.0,0.18008337]
[1752110208456,1.02247081,111110.0,111100.0,0.54088337]
[1752110208856,1.03137336,111110.0,111100.0,0.54088337]
[1752110209151,0.95071922,111110.0,111100.0,0.18008337]
[1752110209347,1.03134803,111110.0,111100.0,0.54088337]
[1752110211552,1.03134803,111110.0,111100.0,0.18008337]
[1752110213260,1.03134803,111110.0,111100.0,0.21238337]
[1752110215862,1.03134803,111110.0,111100.0,0.18008337]
[1752110216758,1.29601687,111110.0,111100.0,0.18008337]
[1752110217161,1.03134803,111110.0,111100.0,0.18008337]
[1752110217559,1.03134803,111110.0,111100.0,0.21248337]
[1752110218059,0.41614803,111110.0,111100.0,0.21248337]
[1752110218357,0.91885548,111110.0,111100.0,1.22938221]
[1752110218555,0.93476548,111110.0,111100.0,1.22938221]
[1752110218761,0.31956548,111110.0,111100.0,1.22938221]
[1752110218961,0.93476548,111110.0,111100.0,1.22938221]
[1752110219259,0.31956548,111110.0,111100.0,1.25938221]
[1752110219460,0.95757548,111110.0,111100.0,0.52058221]
[1752110219666,0.95757548,111110.0,111100.0,0.88138221]
[1752110222763,0.95657548,111110.0,111100.0,0.8903033]
[1752110222969,0.95657548,111110.0,111100.0,0.8913033]
[1752110223367,0.95657548,111110.0,111100.0,0.88238221]
[1752110224562,0.95657548,111110.0,111100.0,1.20238221]
[1752110225961,0.95657548,111110.0,111100.0,0.88238221]
[1752110226270,0.95657548,111110.0,111100.0,1.24238221]
[1752110226675,0.95657548,111110.0,111100.0,1.25123564]
[1752110227273,0.95657548,111110.0,111100.0,0.89123564]
[1752110227473,0.98357961,111110.0,111100.0,1.21123564]
[1752110227973,0.95660458,111110.0,111100.0,1.21123564]
[1752110228177,0.87594667,111110.0,111100.0,1.21123564]
[1752110228862,0.95661536,111110.0,111100.0,1.23123564]
[1752110229168,0.87594667,111110.0,111100.0,1.23123564]
[1752110229565,0.95662471,111110.0,111100.0,1.23123564]
[1752110230262,0.95662471,111110.0,111100.0,0.9665668]
[1752110230462,0.95662471,111110.0,111100.0,0.98058547]
[1752110230670,0.95662471,111110.0,111100.0,1.24525431]
[1752110231372,0.87590667,111110.0,111100.0,1.24525431]
[1752110231571,0.95660821,111110.0,111100.0,1.24525431]
[1752110231972,0.77666921,111110.0,111100.0,1.24525431]
[1752110232373,0.75385921,111110.0,111100.0,1.27525431]
[1752110232572,0.75385921,111110.0,111100.0,1.26572431]
[1752110233273,0.65724767,111110.0,111100.0,1.26572431]
[1752110233577,0.67315767,111110.0,111100.0,1.26572431]
[1752110233776,0.67315767,111110.0,111100.0,1.27572431]
[1752110233967,0.7538712,111110.0,111100.0,1.27572431]
[1752110234273,0.67315767,111110.0,111100.0,1.27572431]
[1752110234674,0.7538735,111110.0,111100.0,1.27572431]
[1752110236071,0.7379635,111110.0,111100.0,1.27572431]
[1752110236375,0.7538735,111110.0,111100.0,1.27572431]
[1752110236572,0.67315767,111110.0,111100.0,1.27572431]
[1752110236971,0.67315767,111110.0,111100.0,1.63652431]
[1752110237376,0.67315767,111110.0,111100.0,1.62652431]
[1752110237577,0.73792365,111110.0,111100.0,1.63248431]
[1752110237775,0.12280365,111110.0,111100.0,1.63248431]
[1752110238172,0.08071598,111110.0,111100.0,1.63248431]
[1752110238374,0.12280365,111110.0,111100.0,1.63248431]
[1752110238568,0.08071598,111110.0,111100.0,1.63248431]
[1752110238772,0.12280365,111110.0,111100.0,1.62248431]
[1752110239277,0.08071598,111110.0,111100.0,1.62248431]
[1752110239478,0.12280365,111110.0,111100.0,1.62248431]
[1752110239680,0.08071598,111110.0,111100.0,1.62248431]
[1752110239972,0.12280365,111110.0,111100.0,1.62248431]
[1752110240179,0.08071598,111110.0,111100.0,1.62248431]
[1752110240376,0.12280365,111110.0,111100.0,1.62248431]
[1752110240576,0.08071598,111110.0,111100.0,1.62248431]
[1752110240777,0.12280365,111110.0,111100.0,1.62248431]
[1752110241272,0.04208767,111110.0,111100.0,1.62248431]
[1752110241474,0.78031708,111120.0,111110.0,0.179939]
[1752110241774,0.79622708,111120.0,111110.0,1.24823784]
[1752110241974,0.77341708,111120.0,111110.0,1.2622352]
[1752110242477,0.77341708,111120.0,111110.0,1.2022352]
[1752110242879,0.79622708,111120.0,111110.0,1.1927052]
[1752110243078,0.18210708,111120.0,111110.0,0.61803636]
[1752110243380,0.18210708,111120.0,111110.0,1.19270266]
[1752110244070,0.18210708,111120.0,111110.0,0.88270266]
[1752110244273,0.18210708,111120.0,111110.0,1.22470266]
[1752110244576,0.18110708,111120.0,111110.0,1.22470266]
[1752110244777,0.20802404,111120.0,111110.0,1.22570266]
[1752110245876,0.20802404,111120.0,111110.0,0.92570266]
[1752110246070,0.24022404,111120.0,111110.0,0.93523266]
[1752110246781,0.23985787,111120.0,111110.0,0.93523266]
[1752110246979,0.23985787,111120.0,111110.0,1.24523266]
[1752110247682,0.23985787,111120.0,111110.0,1.23523266]
[1752110247881,0.23985787,111120.0,111110.0,0.92523266]
[1752110248083,0.23985787,111120.0,111110.0,1.22523266]
[1752110248875,0.20765787,111120.0,111110.0,1.23523266]
[1752110249186,0.18484787,111120.0,111110.0,1.23523266]
[1752110249884,0.20863787,111120.0,111110.0,1.23523266]
[1752110250291,0.38856057,111120.0,111110.0,1.23523266]
[1752110250881,0.20863787,111120.0,111110.0,1.23523266]
[1752110251186,1.00364067,111120.0,111110.0,1.23523266]
[1752110252286,1.00364067,111120.0,111110.0,1.22523266]
[1752110252586,0.16893787,111120.0,111110.0,2.74333648]
[1752110253587,0.14199252,111120.0,111110.0,2.74333648]
[1752110253987,0.14199252,111120.0,111110.0,2.46913764]
[1752110254992,0.15763252,111120.0,111110.0,2.46317764]
[1752110255494,0.25686763,111120.0,111110.0,0.9050888]
[1752110255689,0.66472406,111120.0,111110.0,0.5538187]
[1752110255895,0.66472406,111120.0,111110.0,0.2242887]
[1752110256094,0.40005522,111120.0,111110.0,0.2242887]
[1752110256390,0.31936763,111120.0,111110.0,0.2242887]
[1752110257194,0.31936763,111120.0,111110.0,0.49848754]
[1752110257390,0.30372763,111120.0,111110.0,0.48895754]
[1752110257596,0.34315763,111120.0,111110.0,0.49848754]
[1752110257897,0.42383541,111120.0,111110.0,0.84975754]
[1752110258292,0.34315763,111120.0,111110.0,0.85928754]
[1752110258795,0.34315763,111120.0,111110.0,1.19928754]
[1752110260798,0.34315763,111120.0,111110.0,1.23138754]
[1752110261196,0.16323493,111120.0,111110.0,1.23138754]
[1752110261398,0.13944493,111120.0,111110.0,1.26248754]
[1752110261895,0.24707787,111120.0,111110.0,1.26248754]
[1752110262492,0.21467787,111120.0,111110.0,1.26248754]
[1752110263396,0.21467787,111120.0,111110.0,1.28248754]
[1752110263599,0.79957787,111120.0,111110.0,1.28248754]
[1752110264199,0.69194493,111120.0,111110.0,1.28248754]
[1752110264393,0.69194493,111120.0,111110.0,1.24248754]
[1752110264892,0.77267683,111120.0,111110.0,1.24248754]
[1752110265094,0.95259953,111120.0,111110.0,1.24248754]
[1752110265593,0.77267683,111120.0,111110.0,1.24248754]
[1752110266301,0.77267683,111120.0,111110.0,1.22849272]
[1752110266302,0.95259953,111120.0,111110.0,1.22849272]
[1752110266499,0.95259953,111120.0,111110.0,1.24255821]
[1752110267099,0.87186763,111120.0,111110.0,1.24255821]
[1752110270200,0.69194493,111120.0,111110.0,1.24255821]
[1752110270402,0.69194493,111120.0,111110.0,0.91255819]
[1752110270601,0.69194493,111120.0,111110.0,1.28255819]
[1752110271200,0.77271509,111120.0,111110.0,1.28255819]
[1752110271402,0.95263779,111120.0,111110.0,1.28255819]
[1752110272403,0.95263779,111120.0,111110.0,1.28255855]
[1752110273804,0.95263779,111120.0,111110.0,1.24255855]
[1752110274005,0.77271509,111120.0,111110.0,1.24255855]
[1752110275008,0.7299091,111120.0,111110.0,1.24255855]
[1752110275204,0.7730962,111120.0,111110.0,1.22849272]
[1752110275502,0.7730962,111120.0,111110.0,1.24255843]
[1752110276807,0.69232604,111120.0,111110.0,1.24255843]
[1752110277409,0.69232604,111120.0,111110.0,1.22255843]
[1752110278702,0.77309841,111120.0,111110.0,1.22255843]
[1752110278901,0.77309841,111120.0,111110.0,1.25255843]
[1752110282121,0.69232604,111120.0,111110.0,1.25255843]
[1752110282315,0.69232604,111120.0,111110.0,0.91255843]
[1752110282316,0.77309758,111120.0,111110.0,0.91255843]
[1752110282515,0.77309758,111120.0,111110.0,1.22255843]
[1752110282916,0.69232604,111120.0,111110.0,1.22255835]
[1752110283420,0.71537604,111120.0,111110.0,1.22255835]
[1752110283823,0.79615028,111120.0,111110.0,1.29255835]
[1752110284430,0.89529874,111120.0,111110.0,0.67678951]
[1752110284609,0.95879874,111120.0,111110.0,1.26145835]
[1752110285224,1.06643168,111120.0,111110.0,1.26145835]
[1752110287325,1.06643168,111120.0,111110.0,1.21145835]
[1752110287625,0.95879874,111120.0,111110.0,1.21145835]
[1752110288829,0.95879874,111120.0,111110.0,1.19145304]
[1752110289321,1.06643168,111120.0,111110.0,1.19145304]
[1752110291326,1.33109521,111120.0,111110.0,1.19145304]
[1752110292330,1.33109521,111120.0,111110.0,1.24145304]
[1752110292620,1.06643168,111120.0,111110.0,1.24145304]
[1752110293530,0.85610898,111120.0,111110.0,1.50611657]
[1752110293828,0.79995898,111120.0,111110.0,1.53761657]
[1752110294018,0.79983898,111120.0,111110.0,1.53761657]
[1752110294216,0.69220604,111120.0,111110.0,1.50761657]
[1752110294729,0.79983898,111120.0,111110.0,1.50761599]
[1752110296821,0.79983898,111120.0,111110.0,1.24290074]
[1752110297330,0.38747168,111120.0,111110.0,1.23337074]
[1752110297533,0.92471874,111120.0,111110.0,1.23337074]
[1752110297736,1.03250323,111120.0,111110.0,1.25337074]
[1752110298332,1.03250323,111120.0,111110.0,1.18977074]
[1752110298726,1.06460323,111120.0,111110.0,1.18977074]
[1752110298928,1.06460323,111120.0,111110.0,1.17977074]
[1752110300036,0.88468053,111120.0,111110.0,1.17977074]
[1752110300231,0.85258053,111120.0,111110.0,1.24407074]
[1752110300429,0.82258053,111120.0,111110.0,1.24407141]
[1752110300928,0.78435053,111120.0,111110.0,1.24407141]
[1752110301128,0.79953053,111120.0,111110.0,0.9794596]
[1752110301331,0.79953053,111120.0,111110.0,1.25360141]
[1752110301525,0.18465053,111120.0,111110.0,1.25360141]
[1752110301722,0.79953053,111120.0,111110.0,1.25360141]
[1752110302139,0.79953053,111120.0,111110.0,1.51821322]
[1752110302332,0.16947053,111120.0,111110.0,1.51821322]
[1752110302635,0.78435053,111120.0,111110.0,1.51821322]
[1752110302835,0.78435053,111120.0,111110.0,1.55821322]
[1752110303835,0.78435053,111120.0,111110.0,1.53821322]
[1752110304436,0.16947053,111120.0,111110.0,1.53821322]
[1752110304631,0.16947053,111120.0,111110.0,1.27360141]
[1752110304938,0.14252581,111120.0,111110.0,1.53821322]
[1752110306244,0.14252581,111120.0,111110.0,1.27360141]
[1752110307434,0.14252581,111120.0,111110.0,1.29360141]
[1752110308439,0.14252581,111120.0,111110.0,1.55821322]
[1752110308641,0.06168604,111120.0,111110.0,1.29360141]
[1752110308938,0.06168604,111120.0,111110.0,1.28360141]
[1752110309138,0.06168604,111120.0,111110.0,1.28360008]
[1752110309336,0.06168604,111120.0,111110.0,1.53868189]
[1752110309535,0.06168604,111120.0,111110.0,1.54464189]
[1752110311230,0.06168604,111120.0,111110.0,1.28003008]
[1752110312939,0.06168604,111120.0,111110.0,1.25407008]
[1752110313639,0.06168604,111120.0,111110.0,1.54867008]
[1752110313942,0.06168604,111120.0,111110.0,1.56867008]
[1752110317043,0.10197604,111120.0,111110.0,2.79823008]
[1752110317345,0.58416322,111120.0,111110.0,0.81160329]
[1752110317644,0.58416322,111120.0,111110.0,0.49160329]
[1752110317645,0.68865032,111120.0,111110.0,0.49160329]
[1752110318742,0.42403851,111120.0,111110.0,0.49160329]
[1752110318943,0.68875001,111120.0,111110.0,0.75631479]
[1752110319244,0.69036361,111120.0,111110.0,0.75431479]
[1752110319744,0.69036361,111120.0,111110.0,0.45971479]
[1752110320440,0.69036361,111120.0,111110.0,0.45871479]
[1752110320746,0.60952384,111120.0,111110.0,0.46071479]
[1752110320947,0.34481234,111120.0,111110.0,0.19600329]
[1752110321247,0.34481234,111120.0,111110.0,0.19400575]
[1752110321442,0.34581234,111120.0,111110.0,0.19400575]
[1752110322249,0.34683208,111120.0,111110.0,0.19400575]
[1752110322450,0.34683208,111120.0,111110.0,0.83870919]
[1752110322749,0.34683208,111120.0,111110.0,0.46823919]
[1752110323048,0.34683208,111120.0,111110.0,1.18903919]
[1752110323552,0.2476551,111120.0,111110.0,1.18903919]
[1752110323739,0.2163551,111120.0,111110.0,0.82903919]
[1752110324046,0.1618351,111120.0,111110.0,1.26183919]
[1752110324247,0.7766351,111120.0,111110.0,1.26183919]
[1752110324439,0.7756351,111120.0,111110.0,1.26183919]
[1752110324840,0.7746351,111120.0,111110.0,1.26283919]
[1752110325548,0.7746351,111120.0,111110.0,1.55743919]
[1752110326845,0.7746351,111120.0,111110.0,1.92023919]
[1752110327349,0.7746351,111120.0,111110.0,1.88023919]
[1752110328450,0.9545578,111120.0,111110.0,1.87923919]
[1752110328648,0.9545578,111120.0,111110.0,1.88123919]
[1752110328850,0.9545578,111120.0,111110.0,1.86123919]
[1752110329348,0.87381208,111120.0,111110.0,1.86123919]
[1752110330142,0.96373208,111120.0,111110.0,1.86123919]
[1752110330449,0.78380938,111120.0,111110.0,1.86123919]
[1752110330646,0.78380938,111120.0,111110.0,1.50043891]
[1752110331352,0.78380938,111120.0,111110.0,1.20583891]
[1752110332051,0.78380938,111120.0,111110.0,1.20483891]
[1752110332651,0.78380938,111120.0,111110.0,1.20283891]
[1752110332842,0.78380938,111120.0,111110.0,1.23283891]
[1752110333851,0.78380938,111120.0,111110.0,1.20283891]
[1752110334744,0.8645551,111120.0,111110.0,1.20283891]
[1752110336849,0.89159387,111120.0,111110.0,1.20283891]
[1752110337152,1.07151657,111120.0,111110.0,1.20283891]
[1752110338156,1.07151657,111120.0,111110.0,1.26283891]
[1752110338648,0.89159387,111120.0,111110.0,1.26283891]
[1752110338852,0.89159387,111120.0,111110.0,1.20283891]
[1752110339053,0.85889387,111120.0,111110.0,1.20283891]
[1752110339254,0.24409387,111120.0,111110.0,1.20283891]
[1752110339454,0.85957387,111120.0,111110.0,1.20283891]
[1752110341438,0.85957387,111120.0,111110.0,1.18877234]
[1752110341943,0.85957387,111120.0,111110.0,1.20283788]
[1752110342353,0.85957387,111120.0,111110.0,1.26283788]
[1752110343857,0.85957387,111120.0,111110.0,1.23283788]
[1752110344757,0.83258816,111120.0,111110.0,1.23283788]
[1752110346058,0.75625562,111120.0,111110.0,1.23283788]
[1752110346659,0.79892004,111120.0,111110.0,1.22330788]
[1752110348960,0.79892004,111120.0,111110.0,1.21330788]
[1752110350255,0.77536004,111120.0,111110.0,1.21330788]
[1752110351361,0.78032004,111120.0,111110.0,1.21330788]
[1752110351863,0.76187562,111120.0,111110.0,1.21330788]
[1752110352254,0.12500562,111120.0,111110.0,1.77429132]
[1752110352461,0.12500562,111120.0,111110.0,2.10429132]
[1752110353359,0.04420684,111120.0,111110.0,2.10629132]
[1752110353757,0.04420684,111120.0,111110.0,2.15629132]
[1752110355063,0.04420684,111120.0,111110.0,2.45089132]
[1752110356064,0.08279878,111130.0,111120.0,0.70932958]
[1752110356265,0.09922878,111130.0,111120.0,1.55432861]
[1752110357060,0.08279878,111130.0,111120.0,1.54479861]
[1752110357568,0.08279878,111130.0,111120.0,1.81939861]
[1752110358560,0.002,111130.0,111120.0,1.81939861]
[1752110358864,0.002,111130.0,111120.0,1.82939861]
[1752110360268,0.0992749,111140.0,111130.0,0.1799065]
[1752110360473,0.01847612,111140.0,111130.0,1.88512548]
[1752110360672,0.01847612,111140.0,111130.0,1.61089204]
[1752110360872,0.03490612,111140.0,111130.0,1.87559548]
[1752110361072,0.03490612,111140.0,111130.0,2.17019548]
[1752110361272,0.03490612,111140.0,111130.0,2.17926466]
[1752110361476,0.03690612,111140.0,111130.0,2.17926181]
[1752110362179,0.03790612,111140.0,111130.0,2.17926181]
[1752110362378,0.03790612,111140.0,111130.0,2.13926181]
[1752110362976,0.03590612,111140.0,111130.0,2.13926181]
[1752110363375,0.03590612,111140.0,111130.0,2.12519912]
[1752110363677,0.03590612,111140.0,111130.0,2.13926183]
[1752110366179,0.01947612,111140.0,111130.0,2.13926183]
[1752110366377,0.03590612,111140.0,111130.0,2.13926183]
[1752110366575,0.03490612,111140.0,111130.0,2.13926183]
[1752110367274,0.03490612,111140.0,111130.0,1.80926183]
[1752110367479,0.03490612,111140.0,111130.0,2.14926183]
[1752110368076,0.07746565,111140.0,111130.0,2.14926183]
[1752110368780,0.07746565,111140.0,111130.0,2.17926183]
[1752110369280,0.07746565,111140.0,111130.0,2.17926152]
[1752110369684,0.06103565,111140.0,111130.0,2.17926152]
[1752110369887,0.07713565,111140.0,111130.0,2.17926152]
[1752110370884,0.03457612,111140.0,111130.0,2.44359734]
[1752110371574,0.07697386,111140.0,111130.0,2.44359734]
[1752110372177,0.07697386,111140.0,111130.0,1.91455808]
[1752110372381,0.07697386,111140.0,111130.0,2.43359734]
[1752110372775,0.07697386,111140.0,111130.0,1.90455808]
[1752110372971,0.07697386,111140.0,111130.0,2.43359734]
[1752110373883,0.07697386,111140.0,111130.0,2.39359734]
[1752110374882,0.07697386,111140.0,111130.0,2.39359725]
[1752110376687,0.06087386,111140.0,111130.0,2.39359725]
[1752110377285,0.06087386,111140.0,111130.0,2.07359725]
[1752110377582,0.06087386,111140.0,111130.0,2.42359725]
[1752110378983,0.06087386,111140.0,111130.0,2.45359725]
[1752110379585,0.07697386,111140.0,111130.0,2.45359725]
[1752110382289,0.07697386,111140.0,111130.0,2.07359725]
[1752110382489,0.07697386,111140.0,111130.0,2.41359725]
[1752110382883,0.06087386,111140.0,111130.0,2.41359725]
[1752110383785,0.04239774,111140.0,111130.0,2.42359725]
[1752110383988,0.04239774,111140.0,111130.0,2.69407688]
[1752110384191,0.04239774,111140.0,111130.0,2.42955725]
[1752110384593,0.04239774,111140.0,111130.0,2.69407688]
[1752110384891,0.08079878,111140.0,111130.0,2.42955725]
[1752110385192,0.08079878,111140.0,111130.0,2.4295569]
[1752110387188,0.12319652,111140.0,111130.0,2.4295569]
[1752110387793,0.12319652,111140.0,111130.0,2.4095569]
[1752110388387,0.12319652,111140.0,111130.0,2.67407653]
[1752110388594,0.12319652,111140.0,111130.0,2.4095569]
[1752110388892,0.12319652,111140.0,111130.0,2.4595569]
[1752110391086,0.12319652,111140.0,111130.0,2.45955642]
[1752110392391,0.12319652,111140.0,111130.0,2.42955642]
[1752110393384,0.12319652,111140.0,111130.0,2.69407605]
[1752110393785,0.12319652,111140.0,111130.0,2.66407605]
[1752110393986,0.12319652,111140.0,111130.0,2.3995564]
[1752110394492,0.12319652,111140.0,111130.0,1.87051714]
[1752110394689,0.12319652,111140.0,111130.0,2.3995564]
[1752110394894,0.04239774,111140.0,111130.0,2.3995564]
[1752110396195,0.04239774,111140.0,111130.0,2.66407603]
[1752110396392,0.08079878,111150.0,111140.0,0.1798904]
[1752110396594,0.10978449,111160.0,111150.0,0.1798742]
[1752110396895,0.002,111160.0,111150.0,2.19532566]
[1752110397104,0.002,111160.0,111150.0,2.71483492]
[1752110397787,0.006,111160.0,111150.0,2.71483492]
[1752110398192,0.006,111160.0,111150.0,2.97935455]
[1752110398599,0.007,111160.0,111150.0,2.71483492]
[1752110398803,0.007,111160.0,111150.0,2.75457054]
[1752110399390,0.009,111160.0,111150.0,2.75457054]
[1752110400404,0.009,111160.0,111150.0,2.82773465]
[1752110400896,0.009,111160.0,111150.0,2.83369465]
[1752110403295,0.009,111160.0,111150.0,2.80369465]
[1752110403496,0.009,111160.0,111150.0,2.27491977]
[1752110403701,0.009,111160.0,111150.0,2.80369465]
[1752110404993,0.009,111160.0,111150.0,2.83369465]
[1752110407492,0.002,111160.0,111150.0,2.83369194]
[1752110407691,0.002,111160.0,111150.0,2.30491706]
[1752110407896,0.002,111160.0,111150.0,2.83369194]
[1752110408405,0.002,111160.0,111150.0,2.82369194]
[1752110408900,0.03924008,111160.0,111150.0,2.82369194]
[1752110409401,0.03924008,111160.0,111150.0,2.47369194]
[1752110409601,0.03924008,111160.0,111150.0,2.81369194]
[1752110410602,8e-08,111160.0,111150.0,3.10829194]
[1752110410801,1.26316547,111190.0,111180.0,0.1798256]
[1752110410802,0.031,111190.0,111180.0,0.1798256]
[1752110411105,0.031,111190.0,111180.0,3.02166923]
[1752110411296,0.031,111190.0,111180.0,3.07583923]
[1752110411498,0.07825092,111200.0,111190.0,0.1798094]
[1752110411702,0.12441092,111200.0,111190.0,0.81452684]
[1752110412004,0.12441092,111200.0,111190.0,0.80499684]
[1752110412596,0.12441092,111200.0,111190.0,0.81452684]
[1752110412904,0.12941092,111200.0,111190.0,0.80499684]
[1752110413298,0.12941092,111200.0,111190.0,0.81452684]
[1752110413904,0.06591092,111200.0,111190.0,1.21148184]
[1752110414097,0.06591092,111200.0,111190.0,1.80266928]
[1752110414098,2e-08,111200.0,111190.0,1.80266928]
[1752110414303,2e-08,111200.0,111190.0,1.53828184]
[1752110414602,0.00400002,111200.0,111190.0,1.53471184]
[1752110414999,0.01916002,111200.0,111190.0,2.16027184]
[1752110415313,0.01916,111200.0,111190.0,2.15039184]
[1752110415498,0.02116,111200.0,111190.0,2.15039184]
[1752110415696,0.05226,111200.0,111190.0,2.15039184]
[1752110415901,0.05226,111200.0,111190.0,1.48655184]
[1752110416101,0.07703,111200.0,111190.0,2.10529184]
[1752110416295,0.12669796,111200.0,111190.0,2.10529184]
[1752110416495,0.12669796,111200.0,111190.0,1.74521184]
[1752110419094,0.12669796,111200.0,111190.0,1.73115684]
[1752110420704,0.30649126,111200.0,111190.0,1.09959684]
[1752110420905,0.30649126,111200.0,111190.0,0.8352094]
[1752110421306,0.5708787,111200.0,111190.0,0.4744094]
[1752110421895,1.0122313,111200.0,111190.0,0.4744094]
[1752110422205,1.1920953,111200.0,111190.0,0.4744094]
[1752110422813,1.04894515,111200.0,111190.0,0.4744094]
[1752110423009,1.22880915,111200.0,111190.0,0.4744094]
[1752110423303,1.25604104,111200.0,111190.0,0.1798094]
[1752110423603,1.07617704,111200.0,111190.0,0.1798094]
[1752110423796,1.25604104,111200.0,111190.0,0.1798094]
[1752110424606,1.07617704,111200.0,111190.0,0.1798094]
[1752110424806,1.42617704,111200.0,111190.0,0.1798094]
[1752110425304,0.96839255,111200.0,111190.0,0.1798094]
[1752110425695,1.44584632,111200.0,111190.0,0.1798094]
[1752110426099,1.33839255,111200.0,111190.0,0.1798094]
[1752110426510,0.70400511,111200.0,111190.0,0.1798094]
[1752110426702,0.96839255,111200.0,111190.0,0.1798094]
[1752110426908,1.31839255,111200.0,111190.0,0.1798094]
[1752110427109,0.70400511,111200.0,111190.0,0.1798094]
[1752110427303,1.32839255,111200.0,111190.0,0.1798094]
[1752110427511,1.33839255,111200.0,111190.0,0.1798094]
[1752110428211,0.83850259,111200.0,111190.0,0.1798094]
[1752110428601,0.83815259,111200.0,111190.0,0.1798094]
[1752110429105,0.83815259,111200.0,111190.0,0.44419684]
[1752110429712,0.47735259,111200.0,111190.0,0.45372684]
[1752110429915,0.23940916,111200.0,111190.0,1.19858296]
[1752110430117,0.20830916,111200.0,111190.0,1.55558289]
[1752110430320,0.16872916,111200.0,111190.0,1.55558289]
[1752110430510,0.14183712,111200.0,111190.0,1.26098289]
[1752110431012,0.06118181,111200.0,111190.0,1.26098289]
[1752110431513,0.05518181,111200.0,111190.0,1.26198289]
[1752110431712,0.05618181,111200.0,111190.0,1.26198289]
[1752110432118,0.05618181,111200.0,111190.0,1.25841289]
[1752110432516,0.05618181,111200.0,111190.0,1.25741289]
[1752110432718,0.05618181,111200.0,111190.0,1.26141289]
[1752110433110,0.05518181,111200.0,111190.0,1.26141289]
[1752110433314,0.05518181,111200.0,111190.0,1.26341289]
[1752110433618,0.05518181,111200.0,111190.0,1.20341289]
[1752110435121,0.05518181,111200.0,111190.0,1.49801289]
[1752110435321,0.05518181,111200.0,111190.0,1.51801289]
[1752110438822,0.05518181,111200.0,111190.0,1.81117289]
[1752110439022,0.05518181,111200.0,111190.0,2.17117289]
[1752110440014,0.05518181,111200.0,111190.0,2.17713289]
[1752110441415,0.05518181,111200.0,111190.0,2.17117289]
[1752110443627,0.05518181,111200.0,111190.0,2.17713289]
[1752110443835,0.05518181,111200.0,111190.0,2.18713289]
[1752110445121,0.05518181,111200.0,111190.0,2.18698301]
[1752110447323,0.05518181,111200.0,111190.0,2.20415167]
[1752110448927,0.05518181,111200.0,111190.0,2.15415167]
[1752110451031,0.05518181,111200.0,111190.0,2.15414999]
[1752110452330,0.05518181,111200.0,111190.0,2.16414999]
[1752110453532,0.05518181,111200.0,111190.0,2.16406735]